bitfinex/quotes_SOLUSD_20241024
["timestamp","ask_amount","ask_price","bid_price","bid_amount"]
[1729801732242,0.1,176.97,176.93,19.90681928]
[1729801734152,0.1,176.97,176.94,19.90681928]
[1729801735070,0.1,176.97,176.93,19.90681928]
[1729801736070,0.1,176.97,176.87,24.153354]
[1729801736267,0.1,176.97,176.9,20.12549]
[1729801736571,0.1,176.97,176.94,19.90681928]
[1729801739177,0.1,176.99,176.95,19.90681928]
[1729801739477,16.0381,177.0,176.96,19.90681928]
[1729801740756,0.1,176.99,176.96,19.90681928]
[1729801740984,16.0381,177.0,176.96,19.90681928]
[1729801741383,0.1,176.99,176.96,19.90681928]
[1729801741975,15.9381,177.0,176.96,19.90681928]
[1729801741976,16.0381,177.0,176.96,19.90681928]
[1729801742770,0.1,177.0,176.96,19.90681928]
[1729801743074,0.1,177.02,176.99,19.90681928]
[1729801744275,15.7903,177.03,177.0,19.90681928]
[1729801744584,0.1,177.04,177.02,19.90681928]
[1729801747174,0.1,177.04,177.01,19.90681928]
[1729801749080,0.1,177.03,177.0,19.90681928]
[1729801749784,0.1,177.03,177.01,19.90681928]
[1729801751180,0.1,177.02,176.99,19.90681928]
[1729801751366,0.1,177.01,176.98,19.90681928]
[1729801752168,0.1,177.01,176.97,19.90681928]
[1729801752369,0.1,177.0,176.97,19.90681928]
[1729801753364,0.1,177.0,176.98,19.90681928]
[1729801753681,0.1,177.01,176.98,19.90681928]
[1729801754983,0.1,177.0,176.98,19.90681928]
[1729801756885,0.1,177.01,176.98,19.90681928]
[1729801757767,0.1,177.0,176.98,19.90681928]
[1729801767900,0.1,177.0,176.99,19.90681928]
[1729801775374,25.65651928,177.0,176.93,20.0]
[1729801775574,0.1,176.96,176.93,19.90681928]
[1729801776482,0.1,176.96,176.9,5.88088692]
[1729801776682,0.1,176.96,176.94,19.90681928]
[1729801776975,0.1,176.94,176.92,20.0]
[1729801777193,0.1,176.94,176.92,39.90681928]
[1729801777594,0.1,176.94,176.93,19.90681928]
[1729801778703,0.1,176.96,176.93,19.90681928]
[1729801778881,0.1,176.99,176.95,19.90681928]
[1729801779082,0.1,177.0,176.98,19.90681928]
[1729801779401,0.1,177.0,176.99,19.90681928]
[1729801781211,0.1,176.99,176.98,19.90681928]
[1729801782684,0.1,177.0,176.98,19.90681928]
[1729801783009,0.1,177.0,176.99,19.90681928]
[1729801784602,0.1,177.0,176.98,19.90681928]
[1729801785620,47.51861928,177.04,176.92,26.3946]
[1729801785621,0.1,176.99,176.97,19.90681928]
[1729801788020,0.1,176.99,176.92,26.3946]
[1729801788204,27.6118,177.04,176.95,19.90681928]
[1729801788205,0.1,176.98,176.95,19.90681928]
[1729801790315,0.1,176.98,176.96,19.90681928]
[1729801796213,0.1,176.98,176.97,19.90681928]
[1729801797615,0.1,176.98,176.93,0.25098]
[1729801797801,0.1,176.98,176.96,19.90681928]
[1729801798905,0.1,176.98,176.97,19.90681928]
[1729801801823,0.1,176.98,176.96,19.90681928]
[1729801802125,0.1,177.0,176.97,19.90681928]
[1729801802320,0.1,177.0,176.98,19.90681928]
[1729801802507,0.1,177.0,176.93,0.25098]
[1729801802508,0.1,177.0,176.96,19.90681928]
[1729801802916,0.1,176.98,176.93,0.25098]
[1729801803098,0.1,176.98,176.94,19.90681928]
[1729801803304,0.1,176.98,176.95,19.90681928]
[1729801803831,0.1,176.97,176.92,20.0]
[1729801804013,0.1,176.97,176.94,19.90681928]
[1729801804824,0.1,176.97,176.95,19.90681928]
[1729801806702,0.1,176.97,176.92,20.0]
[1729801806908,0.1,176.94,176.88,6.659]
[1729801807105,0.1,176.94,176.91,19.90681928]
[1729801809309,0.1,176.94,176.9,25.78432126]
[1729801809509,0.1,176.92,176.9,25.78432126]
[1729801811815,0.1,176.92,176.9,5.87750198]
[1729801812018,0.1,176.92,176.9,25.78432126]
[1729801812334,0.1,176.92,176.9,5.87750198]
[1729801812630,0.1,176.92,176.9,25.78432126]
[1729801812828,0.1,176.92,176.91,19.90681928]
[1729801822539,0.1,176.94,176.91,19.90681928]
[1729801822718,0.1,176.93,176.9,5.87750198]
[1729801822919,0.1,176.93,176.92,19.90681928]
[1729801827241,0.45098,176.91,176.9,5.87209036]
[1729801827423,0.1,176.82,176.78,19.90681928]
[1729801827622,0.1,176.8,176.75,19.90681928]
[1729801827840,0.1,176.8,176.76,19.90681928]
[1729801829037,0.1,176.8,176.77,39.90681928]
[1729801829244,0.1,176.8,176.78,19.90681928]
[1729801829445,0.1,176.8,176.77,39.90681928]
[1729801829743,0.1,176.81,176.79,19.90681928]
[1729801830447,0.1,176.77,176.71,0.51112894]
[1729801830640,7.63129083,176.88,176.71,0.51112894]
[1729801830641,0.1,176.73,176.71,0.51112894]
[1729801831337,0.1,176.76,176.72,19.90681928]
[1729801831530,0.1,176.76,176.75,19.90681928]
[1729801831737,0.1,176.76,176.75,19.40681928]
[1729801832244,5.7548,176.85,176.75,19.40681928]
[1729801832245,0.1,176.77,176.75,19.40681928]
[1729801832422,0.1,176.77,176.76,19.90681928]
[1729801833248,0.1,176.76,176.72,0.25098]
[1729801833541,0.1,176.77,176.75,19.90681928]
[1729801833749,0.1,176.77,176.76,19.90681928]
[1729801834638,0.1,176.76,176.75,19.90681928]
[1729801837350,0.1,176.76,176.74,19.90681928]
[1729801839358,0.1,176.75,176.74,19.90681928]
[1729801839563,0.1,176.75,176.74,39.90681928]
[1729801845243,0.1,176.75,176.74,20.0]
[1729801847048,0.1,176.75,176.74,39.90681928]
[1729801847433,0.1,176.75,176.74,20.0]
[1729801849048,0.1,176.75,176.73,20.0]
[1729801850679,0.1,176.75,176.71,0.51112894]
[1729801850960,0.1,176.75,176.74,20.0]
[1729801856557,0.1,176.77,176.74,39.90681928]
[1729801856763,0.1,176.76,176.74,39.90681928]
[1729801860048,0.1,176.76,176.73,19.90681928]
[1729801860246,0.1,176.76,176.74,20.0]
[1729801860450,0.1,176.76,176.74,39.90681928]
[1729801860648,0.1,176.76,176.74,20.0]
[1729801860949,0.1,176.76,176.74,39.90681928]
[1729801862242,0.1,176.77,176.74,39.90681928]
[1729801862444,0.1,176.77,176.75,19.90681928]
[1729801864866,0.1,176.77,176.74,39.90681928]
[1729801868864,0.1,176.78,176.75,19.90681928]
[1729801869052,0.1,176.78,176.76,19.90681928]
[1729801869761,0.1,176.78,176.75,19.90681928]
[1729801870566,0.1,176.79,176.76,20.0]
[1729801870752,80.41509137,176.85,176.77,19.90681928]
[1729801870753,0.1,176.8,176.77,19.90681928]
[1729801871171,0.1,176.81,176.78,19.90681928]
[1729801871471,0.1,176.8,176.77,19.90681928]
[1729801872043,0.1,176.81,176.77,19.90681928]
[1729801872252,0.1,176.82,176.78,19.90681928]
[1729801872662,0.1,176.82,176.79,19.90681928]
[1729801873365,0.1,176.82,176.78,19.90681928]
[1729801873757,0.1,176.82,176.79,19.90681928]
[1729801873963,0.1,176.81,176.79,19.90681928]
[1729801874167,0.1,176.81,176.78,19.90681928]
[1729801875470,0.1,176.81,176.79,19.90681928]
[1729801879066,0.1,176.81,176.8,19.90681928]
[1729801879260,0.1,176.83,176.8,19.90681928]
[1729801879462,0.1,176.81,176.8,39.90681928]
[1729801885385,0.1,176.81,176.8,19.90681928]
[1729801888679,0.1,176.83,176.8,19.90681928]
[1729801888890,0.1,176.83,176.82,19.90681928]
[1729801889382,5.6532,176.89,176.81,19.90681928]
[1729801889582,0.1,176.86,176.82,20.0]
[1729801889880,0.1,176.85,176.82,39.90681928]
[1729801890473,0.1,176.85,176.83,19.90681928]
[1729801891666,0.1,176.86,176.84,19.90681928]
[1729801891966,0.1,176.88,176.85,19.90681928]
[1729801892178,15.7844,176.89,176.87,19.90681928]
[1729801892179,0.1,176.89,176.87,19.90681928]
[1729801893284,0.1,176.9,176.87,19.90681928]
[1729801893489,0.1,176.89,176.87,19.90681928]
[1729801894966,0.1,176.9,176.87,19.90681928]
[1729801895374,0.1,176.89,176.87,19.90681928]
[1729801897789,0.1,176.9,176.87,19.90681928]
[1729801898098,0.1,176.89,176.87,19.90681928]
[1729801900598,0.1,176.91,176.88,19.90681928]
[1729801900891,0.1,176.91,176.89,19.90681928]
[1729801901189,0.1,176.9,176.89,19.90681928]
[1729801901593,0.1,176.97,176.89,19.90681928]
[1729801901594,0.1,176.92,176.89,19.90681928]
[1729801901767,0.1,176.9,176.83,0.12549]
[1729801901971,0.1,176.89,176.88,19.90681928]
[1729801902185,0.1,176.9,176.88,19.90681928]
[1729801902373,0.1,176.89,176.88,19.90681928]
[1729801902571,0.1,176.9,176.88,39.90681928]
[1729801902796,0.1,176.9,176.88,19.90681928]
[1729801902972,0.1,176.92,176.89,19.90681928]
[1729801903388,0.1,176.91,176.89,19.90681928]
[1729801903979,0.1,176.91,176.9,19.90681928]
[1729801904183,0.1,176.93,176.91,20.0]
[1729801904487,0.1,176.97,176.93,20.0]
[1729801904671,0.1,176.97,176.95,19.90681928]
[1729801905077,0.1,176.97,176.96,19.90681928]
[1729801905276,0.1,177.0,176.96,19.90681928]
[1729801905487,0.1,177.0,176.99,19.90681928]
[1729801905704,0.1,177.03,176.99,19.90681928]
[1729801905993,0.1,177.03,177.02,19.90681928]
[1729801906697,23.27041927,177.07,177.02,19.90681928]
[1729801906698,0.1,177.04,177.02,19.90681928]
[1729801906991,0.1,177.05,177.03,19.90681928]
[1729801907193,0.1,177.06,177.04,19.90681928]
[1729801907505,0.75631927,177.07,177.05,19.90681928]
[1729801907677,0.75631927,177.07,177.06,19.90681928]
[1729801908378,0.1,177.08,177.06,19.90681928]
[1729801908698,0.1,177.08,177.07,19.90681928]
[1729801909276,0.1,177.04,176.97,20.0]
[1729801909492,0.1,177.04,177.03,19.90681928]
[1729801914485,19.90681928,177.08,177.03,19.90681928]
[1729801914486,0.1,177.06,177.03,19.90681928]
[1729801914826,0.1,177.07,177.05,19.90681928]
[1729801914991,0.1,177.08,177.06,19.90681928]
[1729801915311,0.1,177.07,177.06,19.90681928]
[1729801915518,0.1,177.07,177.05,19.90681928]
[1729801916112,0.1,177.06,177.05,19.90681928]
[1729801918317,0.1,177.06,177.04,19.90681928]
[1729801920121,0.1,177.05,177.03,19.90681928]
[1729801920322,0.1,177.03,176.99,20.0]
[1729801920537,0.1,176.99,176.97,9.95340964]
[1729801920703,0.1,176.97,176.92,6.4847]
[1729801921027,0.1,176.97,176.94,19.90681928]
[1729801926113,0.1,176.96,176.92,19.90681928]
[1729801926312,0.1,176.96,176.93,20.0]
[1729801926820,0.1,176.93,176.87,20.0]
[1729801927002,0.1,176.93,176.9,20.0]
[1729801927202,0.1,176.93,176.9,39.90681928]
[1729801927401,0.1,176.93,176.86,5.88363723]
[1729801927597,19.90681928,176.94,176.86,5.88363723]
[1729801927598,0.1,176.91,176.86,5.88363723]
[1729801927829,0.1,176.91,176.88,19.90681928]
[1729801929628,0.1,176.91,176.87,19.90681928]
[1729801929812,0.1,176.91,176.88,20.0]
[1729801930226,0.1,176.89,176.88,20.0]
[1729801930408,0.1,176.89,176.87,20.0]
[1729801931316,0.1,176.89,176.86,20.0]
[1729801933531,0.1,176.89,176.86,39.90681928]
[1729801933735,0.1,176.89,176.87,19.90681928]
[1729801933911,0.1,176.89,176.88,20.0]
[1729801946718,0.1,176.89,176.79,21.1253]
[1729801946719,0.1,176.86,176.79,21.1253]
[1729801947043,0.1,176.86,176.83,19.90681928]
[1729801948334,0.1,176.86,176.84,20.0]
[1729801949535,0.1,176.86,176.84,39.90681928]
[1729801953846,0.1,176.86,176.85,19.90681928]
[1729801955639,0.1,176.86,176.84,19.90681928]
[1729801956341,0.1,176.86,176.83,19.90681928]
[1729801956740,0.1,176.86,176.84,20.0]
[1729801957924,0.1,176.84,176.79,24.027864]
[1729801958141,0.1,176.83,176.8,19.90681928]
[1729801958450,0.1,176.81,176.8,19.90681928]
[1729801960333,0.1,176.81,176.8,39.90681928]
[1729801962253,0.1,176.81,176.76,2.25783115]
[1729801962560,0.1,176.77,176.75,19.90681928]
[1729801962733,15.514,176.82,176.71,0.51112894]
[1729801962734,0.1,176.76,176.71,0.51112894]
[1729801962934,0.1,176.76,176.74,19.90681928]
[1729801964260,15.514,176.82,176.71,0.51112894]
[1729801964261,0.1,176.74,176.71,0.51112894]
[1729801964555,0.1,176.74,176.73,19.90681928]
[1729801965559,0.1,176.74,176.73,39.90681928]
[1729801966153,0.1,176.74,176.71,0.51112894]
[1729801966457,0.1,176.72,176.71,0.51112894]
[1729801968162,20.00681928,176.72,176.71,0.51112894]
[1729801968457,0.1,176.72,176.71,0.51112894]
[1729801968857,20.00681928,176.72,176.71,0.51112894]
[1729801970665,0.1,176.72,176.71,0.51112894]
[1729801977861,0.1,176.72,176.71,20.41794822]
[1729801978076,0.1,176.72,176.71,0.51112894]
[1729801979845,0.1,176.72,176.71,20.41794822]
[1729801987547,0.91016788,176.75,176.71,20.41794822]
[1729801987765,0.91016788,176.75,176.74,19.90681928]
[1729801991878,0.81016788,176.75,176.74,19.90681928]
[1729801992062,0.1,176.78,176.74,39.90681928]
[1729801992266,0.1,176.77,176.74,0.12549]
[1729801992466,0.1,176.77,176.74,0.25098]
[1729801994675,0.1,176.77,176.76,19.90681928]
[1729801994862,0.1,176.75,176.72,20.0]
[1729801995059,0.1,176.73,176.71,0.51112894]
[1729801995366,0.1,176.73,176.72,39.90681928]
[1729801995571,0.1,176.72,176.71,0.51112894]
[1729801996088,0.1,176.72,176.71,20.41794822]
[1729801996579,0.1,176.72,176.71,0.51112894]
[1729801996784,0.1,176.72,176.71,20.41794822]
[1729801997167,0.1,176.72,176.71,0.51112894]
[1729802002479,20.00681928,176.72,176.71,0.51112894]
[1729802002980,0.1,176.72,176.71,0.51112894]
[1729802003176,20.00681928,176.72,176.71,0.51112894]
[1729802005176,0.1,176.72,176.71,0.51112894]
[1729802006261,0.1,176.72,176.71,20.41794822]
[1729802006867,0.1,176.72,176.71,0.51112894]
[1729802013585,0.1,176.72,176.71,0.41112894]
[1729802022468,20.00681928,176.72,176.71,0.41112894]
[1729802024280,0.1,176.72,176.71,0.41112894]
[1729802024998,0.88452325,176.72,176.71,0.41112894]
[1729802025783,0.1,176.72,176.71,0.41112894]
[1729802027899,0.1,176.72,176.71,20.31794822]
[1729802028497,0.1,176.72,176.71,0.41112894]
[1729802029193,0.1,176.72,176.71,20.31794822]
[1729802032898,0.1,176.73,176.71,20.31794822]
[1729802033193,0.1,176.75,176.73,20.0]
[1729802033387,0.1,176.75,176.74,19.90681928]
[1729802037078,0.1,176.74,176.72,19.90681928]
[1729802037281,20.69111808,176.77,176.71,20.31794822]
[1729802037282,0.1,176.72,176.71,20.31794822]
[1729802040686,0.1,176.72,176.71,0.41112894]
[1729802053804,25.66541928,176.72,176.71,0.41112894]
[1729802053989,49.76779328,176.72,176.71,0.41112894]
[1729802054190,50.01877328,176.72,176.71,0.41112894]
[1729802060106,30.111954,176.72,176.71,0.41112894]
[1729802060414,50.01877328,176.72,176.71,0.41112894]
[1729802061909,23.976884,176.72,176.71,0.41112894]
[1729802062109,43.88370328,176.72,176.71,0.41112894]
[1729802062313,44.00919328,176.72,176.71,0.41112894]
[1729802062504,49.66779328,176.72,176.71,0.41112894]
[1729802064728,50.41960819,176.72,176.71,0.41112894]
[1729802068333,49.66779328,176.72,176.71,0.41112894]
[1729802068700,50.41960819,176.72,176.71,0.41112894]
[1729802069115,49.66779328,176.72,176.71,0.41112894]
[1729802070119,50.37470822,176.72,176.71,0.41112894]
[1729802071523,50.72568822,176.72,176.71,0.41112894]
[1729802072819,50.01877328,176.72,176.71,0.41112894]
[1729802073605,30.111954,176.72,176.71,0.41112894]
[1729802073803,30.81891838,176.72,176.71,0.41112894]
[1729802074024,50.72573766,176.72,176.71,0.41112894]
[1729802081027,30.81891838,176.72,176.71,0.41112894]
[1729802081238,50.72573766,176.72,176.71,0.41112894]
[1729802092727,30.81891838,176.72,176.71,0.41112894]
[1729802092931,50.72573766,176.72,176.71,0.41112894]
[1729802096146,0.80696438,176.72,176.71,0.41112894]
[1729802097726,0.1,176.72,176.71,0.41112894]
[1729802100866,0.1,176.72,176.71,20.31794822]
[1729802101023,0.1,176.72,176.71,0.41112894]
[1729802101349,0.1,176.72,176.71,20.31794822]
[1729802102848,0.1,176.72,176.71,0.41112894]
[1729802103046,20.00681928,176.72,176.71,0.41112894]
[1729802104245,49.76779328,176.72,176.71,0.41112894]
[1729802104448,50.01877328,176.72,176.71,0.41112894]
[1729802108233,30.111954,176.72,176.71,0.41112894]
[1729802108435,50.01877328,176.72,176.71,0.41112894]
[1729802118175,0.1,176.62,176.61,6.3621]
[1729802119472,0.1,176.59,176.58,36.45441928]
[1729802120143,0.1,176.59,176.58,16.5476]
[1729802122149,0.1,176.58,176.57,6.2203]
[1729802126558,0.1,176.58,176.54,16.6239427]
[1729802126762,0.1,176.58,176.55,19.90681928]
[1729802127164,0.1,176.56,176.55,19.90681928]
[1729802128671,0.1,176.57,176.55,19.90681928]
[1729802128867,0.1,176.57,176.56,19.90681928]
[1729802129072,0.1,176.58,176.56,19.90681928]
[1729802129248,0.1,176.57,176.55,20.0]
[1729802133253,0.1,176.57,176.56,19.90681928]
[1729802136074,0.1,176.57,176.55,20.0]
[1729802136260,0.1,176.56,176.55,20.0]
[1729802136463,0.1,176.55,176.54,16.6239427]
[1729802138772,20.00681928,176.55,176.54,0.5970427]
[1729802138950,10.05340964,176.55,176.54,0.5970427]
[1729802139155,0.1,176.55,176.54,0.5970427]
[1729802144983,0.1,176.55,176.54,0.0970427]
[1729802145567,25.67091928,176.55,176.54,0.0970427]
[1729802149983,5.7641,176.55,176.54,0.0970427]
[1729802150463,24.102374,176.55,176.54,0.0970427]
[1729802150673,44.00919328,176.55,176.54,0.0970427]
[1729802150981,43.90919328,176.55,176.54,0.0970427]
[1729802151488,49.67329328,176.55,176.54,0.0970427]
[1729802152377,29.766474,176.55,176.54,0.0970427]
[1729802152683,49.67329328,176.55,176.54,0.0970427]
[1729802154879,49.92427328,176.55,176.54,0.0970427]
[1729802155581,50.02427328,176.55,176.54,0.0970427]
[1729802159063,54.24324232,176.55,176.54,0.0970427]
[1729802159268,30.117454,176.55,176.54,0.0970427]
[1729802159481,50.02427328,176.55,176.54,0.0970427]
[1729802160382,56.77462374,176.55,176.54,0.0970427]
[1729802160770,23.68376996,176.55,176.54,0.0970427]
[1729802160973,43.59058924,176.55,176.54,0.0970427]
[1729802161480,32.74675974,176.55,176.54,0.0970427]
[1729802162085,36.29133446,176.55,176.54,0.0970427]
[1729802162279,36.41682446,176.55,176.54,0.0970427]
[1729802162664,6.85035046,176.55,176.54,0.0970427]
[1729802163295,6.75035046,176.55,176.54,62.53206198]
[1729802163582,0.1,176.58,176.55,20.0]
[1729802163784,0.1,176.6,176.58,20.0]
[1729802163976,0.1,176.6,176.59,9.95340964]
[1729802164175,0.1,176.6,176.59,19.90681928]
[1729802164776,0.1,176.61,176.59,19.90681928]
[1729802164967,0.1,176.61,176.6,19.90681928]
[1729802166788,0.1,176.57,176.55,20.0]
[1729802166978,0.1,176.57,176.56,29.95340964]
[1729802167983,0.1,176.56,176.54,22.6252427]
[1729802168193,0.1,176.55,176.54,42.6252427]
[1729802169290,0.1,176.55,176.54,0.0970427]
[1729802169496,0.1,176.55,176.54,20.00386198]
[1729802171809,0.1,176.55,176.54,0.0970427]
[1729802172976,0.1,176.55,176.54,20.00386198]
[1729802173593,0.1,176.55,176.54,0.0970427]
[1729802174100,0.1,176.55,176.54,20.00386198]
[1729802176210,0.1,176.55,176.54,0.0970427]
[1729802181719,0.1,176.55,176.54,20.00386198]
[1729802181941,0.1,176.56,176.54,20.00386198]
[1729802182223,0.1,176.56,176.55,19.90681928]
[1729802183019,0.1,176.59,176.55,19.90681928]
[1729802183224,0.1,176.59,176.58,19.90681928]
[1729802190106,0.1,176.6,176.58,19.90681928]
[1729802190309,0.1,176.6,176.59,19.90681928]
[1729802190512,0.1,176.63,176.59,19.90681928]
[1729802190715,0.1,176.63,176.62,19.90681928]
[1729802190905,0.1,176.64,176.62,19.90681928]
[1729802191106,0.1,176.64,176.63,19.90681928]
[1729802197646,0.1,176.6,176.56,42.9069]
[1729802197843,0.1,176.6,176.59,19.90681928]
[1729802218639,0.82227413,176.65,176.6,20.0]
[1729802218952,0.1,176.65,176.64,19.90681928]
[1729802219542,0.1,176.65,176.63,19.90681928]
[1729802220357,0.1,176.71,176.58,79.62727712]
[1729802220358,0.1,176.62,176.58,0.12549]
[1729802220653,0.1,176.62,176.61,39.90681928]
[1729802221754,0.1,176.62,176.61,19.90681928]
[1729802224036,0.1,176.62,176.56,22.9069]
[1729802224037,0.1,176.6,176.57,20.0]
[1729802224254,0.1,176.6,176.58,19.90681928]
[1729802224451,0.1,176.6,176.59,19.90681928]
[1729802237850,0.1,176.6,176.58,19.90681928]
[1729802239159,0.1,176.6,176.57,20.0]
[1729802239361,0.1,176.6,176.58,19.90681928]
[1729802240559,0.1,176.6,176.59,19.90681928]
[1729802241263,0.1,176.61,176.59,19.90681928]
[1729802241563,0.1,176.61,176.6,19.90681928]
[1729802243267,0.1,176.61,176.59,19.90681928]
[1729802243945,0.1,176.6,176.59,19.90681928]
[1729802244438,0.1,176.61,176.59,19.90681928]
[1729802245266,0.1,176.6,176.59,19.90681928]
[1729802250259,0.1,176.61,176.59,19.90681928]
[1729802252065,0.1,176.61,176.6,19.90681928]
[1729802252860,0.1,176.59,176.54,20.0970427]
[1729802253067,0.1,176.59,176.57,20.0]
[1729802253867,11.7659,176.63,176.57,29.95340964]
[1729802253868,0.1,176.6,176.57,29.95340964]
[1729802254068,0.1,176.61,176.59,19.90681928]
[1729802256869,0.1,176.59,176.57,19.90681928]
[1729802263972,0.1,176.59,176.58,19.90681928]
[1729802267183,0.1,176.58,176.56,19.90681928]
[1729802267479,0.1,176.58,176.54,20.0970427]
[1729802267664,0.1,176.58,176.56,20.0]
[1729802268562,0.1,176.58,176.56,39.90681928]
[1729802270179,0.1,176.58,176.56,19.90681928]
[1729802273387,0.1,176.58,176.57,19.90681928]
[1729802276301,0.1,176.61,176.57,39.90681928]
[1729802276600,0.1,176.61,176.6,19.90681928]
[1729802280503,4.34547376,176.61,176.6,19.90681928]
[1729802281576,4.24547376,176.61,176.6,39.90681928]
[1729802281797,4.24547376,176.61,176.6,63.93468328]
[1729802284593,4.24547376,176.61,176.6,64.06017328]
[1729802284993,2.83234405,176.64,176.62,0.12549]
[1729802285195,2.83234405,176.64,176.63,63.80919328]
[1729802285502,2.83234405,176.64,176.63,63.93468328]
[1729802286106,2.83234405,176.64,176.63,64.06017328]
[1729802287791,2.83234405,176.64,176.58,2.40443177]
[1729802288115,2.83234405,176.64,176.63,19.90681928]
[1729802288805,0.1,176.63,176.55,0.1]
[1729802289107,0.1,176.63,176.61,19.90681928]
[1729802290207,2.93234405,176.64,176.62,19.90681928]
[1729802290405,2.83234405,176.64,176.63,19.90681928]
[1729802290798,2.93234405,176.64,176.56,0.35098]
[1729802290995,0.1,176.64,176.61,19.90681928]
[1729802291406,0.1,176.63,176.56,24.027864]
[1729802291607,0.1,176.63,176.6,19.90681928]
[1729802296314,0.1,176.61,176.58,19.90681928]
[1729802301798,0.1,176.6,176.54,20.0970427]
[1729802302100,0.1,176.64,176.59,19.90681928]
[1729802302302,0.1,176.64,176.62,19.90681928]
[1729802304016,0.1,176.63,176.62,19.90681928]
[1729802305795,0.1,176.64,176.62,19.90681928]
[1729802306708,0.1,176.62,176.6,19.90681928]
[1729802310105,0.1,176.64,176.61,19.90681928]
[1729802310319,0.1,176.64,176.62,19.90681928]
[1729802311210,16.2749,176.68,176.63,19.90681928]
[1729802311412,0.1,176.68,176.67,19.90681928]
[1729802312004,0.80973762,176.69,176.67,19.90681928]
[1729802312312,0.1,176.68,176.67,19.90681928]
[1729802312515,0.80973762,176.69,176.67,19.90681928]
[1729802315131,0.80973762,176.69,176.68,19.90681928]
[1729802315622,0.70973762,176.69,176.68,19.90681928]
[1729802317330,0.1,176.7,176.68,19.90681928]
[1729802317627,0.1,176.7,176.69,19.90681928]
[1729802319329,0.1,176.71,176.69,19.90681928]
[1729802320709,0.1,176.7,176.69,19.90681928]
[1729802322131,0.1,176.7,176.68,19.90681928]
[1729802322340,0.1,176.68,176.6,22.1983]
[1729802322628,0.1,176.68,176.65,19.90681928]
[1729802323705,0.1,176.68,176.6,22.1983]
[1729802323939,0.1,176.68,176.63,19.90681928]
[1729802323940,0.1,176.67,176.63,19.90681928]
[1729802324234,0.1,176.67,176.64,19.90681928]
[1729802325534,0.1,176.68,176.65,19.90681928]
[1729802326129,0.1,176.67,176.65,19.90681928]
[1729802327337,0.1,176.67,176.64,19.90681928]
[1729802334138,0.1,176.67,176.65,19.90681928]
[1729802342353,0.1,176.67,176.65,9.95340964]
[1729802342544,0.1,176.67,176.64,19.90681928]
[1729802343652,0.1,176.67,176.6,0.25098]
[1729802343952,35.83761928,176.69,176.63,19.90681928]
[1729802343953,0.1,176.66,176.63,19.90681928]
[1729802344330,0.1,176.66,176.62,19.90681928]
[1729802346253,0.1,176.66,176.63,19.90681928]
[1729802349657,0.1,176.66,176.64,19.90681928]
[1729802350045,15.9308,176.69,176.6,0.25098]
[1729802350046,0.1,176.69,176.65,19.90681928]
[1729802350350,0.1,176.7,176.68,19.90681928]
[1729802351640,0.1,176.72,176.69,19.90681928]
[1729802351839,0.1,176.73,176.7,19.90681928]
[1729802352044,0.1,176.71,176.7,19.90681928]
[1729802354238,0.1,176.72,176.7,19.90681928]
[1729802354453,0.1,176.73,176.71,19.90681928]
[1729802354763,0.1,176.73,176.72,19.90681928]
[1729802356151,0.1,176.74,176.72,19.90681928]
[1729802359064,0.1,176.71,176.62,18.93864759]
[1729802359367,0.1,176.71,176.67,19.90681928]
[1729802365562,0.1,176.67,176.63,20.0]
[1729802365750,0.1,176.67,176.63,39.90681928]
[1729802365955,0.1,176.67,176.64,19.90681928]
[1729802366264,0.1,176.68,176.65,19.90681928]
[1729802366462,0.1,176.67,176.65,19.90681928]